Cogmind - Beta 15 @@@ ROGUE MODE // 2025.07.20 @ 20:22:22 Player: jumpy Result: Self-destructed Performance ------------- Evolutions (2) 1000 Regions Visited (4) 800 Robots Destroyed (30) 150 Value Destroyed (725) 725 Prototype IDs (1) 20 Alien Tech Used (0) 0 Bonus (0) 0 TOTAL SCORE: 2695 Bonus ------- None Cogmind --------- Core Integrity 407/550 Matter 300/300 Energy 280/280 System Corruption 0% Temperature Cool (0) Movement Treading (160) Location -8/Materials Parts ------- > --- POWER (1) -------- Heavy Ion Engine > --- PROPULSION (4) --- Light Treads Improved Treads > --- UTILITY (4) ------ Large Storage Unit Improved Terrain Scanner > --- WEAPON (2) ------- Heavy Particle Cannon Great Maul > --- INVENTORY (15) --- Light Ion Engine Light Ion Engine Armored Treads Compact Wheel Compact Wheel Heavy Particle Cannon Heavy Particle Cannon Mining Laser Peak State ------------ > --- POWER ------------ Heavy Ion Engine > --- PROPULSION ------- Light Treads Light Treads Light Treads Improved Treads > --- UTILITY ---------- Large Storage Unit Improved Terrain Scanner Seismic Detector Light Armor Plating > --- WEAPON ----------- Heavy Particle Cannon Great Maul > --- INVENTORY -------- Light Ion Engine Light Ion Engine Light Treads Armored Treads Compact Wheel Compact Wheel Heavy Particle Cannon Heavy Particle Cannon Mining Laser [Rating: 21] Favorites ----------- Power Light Ion Engine Engine Light Ion Engine Propulsion Light Treads Treads Light Treads Utility Seismic Detector Device Seismic Detector Storage Small Storage Unit Protection Light Armor Plating Weapon Assault Rifle Energy Gun Medium Laser Energy Cannon Heavy Particle Cannon Ballistic Gun Assault Rifle Impact Weapon Great Maul Build | -11 -10 -10 -9 -8 ------- Run | Yrd Mat Min Mat Mat Slots Evolved 4 | . . . 2 2 Power . | . . . . . Propulsion 2 | . . . 1 1 Utility 2 | . . . 1 1 Weapon . | . . . . . Parts Attached 19 | 7 . . 6 6 Power 3 | 1 . . 2 . Engine 3 | 1 . . 2 . Core . | . . . . . Reactor . | . . . . . Propulsion 5 | 2 . . 1 2 Treads 5 | 2 . . 1 2 Leg . | . . . . . Wheel . | . . . . . Hover . | . . . . . Flight . | . . . . . Utility 5 | 2 . . 2 1 Device 2 | 1 . . 1 . Storage 2 | 1 . . 1 . Processor . | . . . . . Hackware . | . . . . . Protection 1 | . . . . 1 Artifact . | . . . . . Weapon 6 | 2 . . 1 3 Energy Gun 1 | 1 . . . . Energy Cannon 2 | . . . . 2 Ballistic Gun 2 | 1 . . 1 . Ballistic Cannon . | . . . . . Launcher . | . . . . . Special Weapon . | . . . . . Impact Weapon 1 | . . . . 1 Slashing Weapon . | . . . . . Piercing Weapon . | . . . . . Special Melee Weapon . | . . . . . Unidentified Prototypes 1 | . . . 1 . Parts Lost 5 | . . . . 5 Power . | . . . . . Propulsion 3 | . . . . 3 Utility 2 | . . . . 2 Weapon . | . . . . . Highest Loss Streak 3 | . . . . 3 To Critical Strikes . | . . . . . Average Backups 6 | 4 5 5 7 8 Power 1 | . 1 1 1 2 Propulsion 2 | 1 2 2 3 3 Utility . | . 1 1 . . Weapon 1 | . 1 1 1 2 Tool/Special . | . . . . . Unused Backups 8 | . . . 1 7 Power 1 | . . . . 1 Propulsion 4 | . . . 1 3 Utility . | . . . . . Weapon 3 | . . . . 3 Tool/Special . | . . . . . Average Slot Usage (%) 91 | . 100 100 92 81 Engine 11 | . 14 14 11 9 Treads 29 | . 28 28 31 29 Device 15 | . 14 14 16 13 Storage 11 | . 14 14 11 9 Energy Gun 4 | . 14 14 . . Energy Cannon 1 | . . . . 5 Ballistic Gun 15 | . 14 14 21 6 Impact Weapon 1 | . . . . 5 Peak Build Rating 21 | 7 7 7 16 21 Average Rating 9 | 6 7 7 11 17 On Entrance 7 | . 7 7 7 15 Naked Turns . | . . . . . Heaviest Build 43 | 13 13 13 35 43 Greatest Support 83 | 40 40 40 63 83 Greatest Overweight (x) . | . . . . . Average Overweight (x) . | . . . . . Largest Inventory Capacity 15 | 8 8 8 15 15 Average Capacity 10 | 7 8 8 11 15 Most Carried 12 | 5 5 5 10 12 Average Carried 6 | 4 5 5 7 8 Final Capacity 15 | 8 8 8 15 15 Final Carried 9 | 5 5 5 9 8 Class Distribution -------------------- 100% | Mutant Dominant Class ---------------- Mutant | -10/Materials Mutant | -10/Mines Mutant | -9/Materials Mutant | -8/Materials Resources | -11 -10 -10 -9 -8 ----------- Run | Yrd Mat Min Mat Mat Matter Collected 653 | 345 . . 223 85 Remotely . | . . . . . Salvage Created 941 | 202 . . 388 351 Parts 57 | 18 . . 27 12 Haulers Intercepted 1 | . . . . 1 Recyclers Shooed . | . . . . . Parts Field Recycled . | . . . . . Retrieved Matter . | . . . . . Parts Self-Destructed . | . . . . . Prevented . | . . . . . Kills | -11 -10 -10 -9 -8 ------- Run | Yrd Mat Min Mat Mat Combat Hostiles Destroyed 15 | . . . 9 6 Guns 9 | . . . 9 . Cannons 2 | . . . . 2 Classes Destroyed 8 | 2 . . 4 2 Builder 1 | . . . . 1 Tunneler 10 | 9 . . . 1 Hauler 1 | . . . . 1 Recycler 1 | 1 . . . . Watcher 2 | . . . 1 1 Swarmer 3 | . . . 3 . Grunt 7 | . . . 2 5 Sentry 5 | . . . 4 1 Best Kill Streak 6 | 3 . . 4 6 Combat Bots Only 3 | . . . 3 3 Max Kills in Single Turn 4 | 1 . . 2 4 Gunslinging . | . . . . . Exploded . | . . . . . Melee . | . . . . . Uniques/NPCs Destroyed . | . . . . . Combat | -11 -10 -10 -9 -8 -------- Run | Yrd Mat Min Mat Mat Hostile Shots Fired 92 | . . . 41 51 Missed 27 | . . . 11 16 Hits 65 | . . . 30 35 Projectile 65 | . . . 30 35 Critical Strikes 2 | . . . . 2 Damage Taken 1132 | . . . 428 704 Core 205 | . . . 62 143 Absorbed by Shields . | . . . . . Regen/Repaired (Parts) 43 | . . . . 43 Core Remaining (%) 94 | 100 . 100 84 . Volleys Fired 69 | 28 1 . 27 13 Largest 2 | 2 2 . 2 1 Hottest 75 | 70 70 . 43 75 Shots Fired 125 | 56 2 . 54 13 Gun 112 | 56 2 . 54 . Cannon 13 | . . . . 13 Launcher . | . . . . . Special . | . . . . . Kinetic 83 | 28 1 . 54 . Thermal 42 | 28 1 . . 13 Explosive . | . . . . . Electromagnetic . | . . . . . Robot Hit Streak 12 | 12 9 . 6 6 Robot Miss Streak 4 | 4 . . 2 1 Penetration Max . | . . . . . Secondary Targets . | . . . . . Shots Hit Robots 91 | 32 2 . 38 19 Core Hits 33 | 11 . . 17 5 Critical Kills . | . . . . . Critical Parts Destroyed 3 | . . . 1 2 Critical Strikes 4 | 1 . . 1 2 Burn 1 | 1 . . . . Destroy 1 | . . . 1 . Smash 2 | . . . . 2 Melee Attacks 10 | . . . . 10 Impact 10 | . . . . 10 Slashing . | . . . . . Piercing . | . . . . . Sneak Attacks 1 | . . . . 1 Combat Hostiles . | . . . . . Follow-up Attacks . | . . . . . Damage Inflicted 2123 | 390 28 . 520 1185 Guns 938 | 390 28 . 520 . Cannons 225 | . . . . 225 Explosions 465 | . . . . 465 Melee 495 | . . . . 495 Ramming . | . . . . . Kinetic 711 | 176 15 . 520 . Thermal 917 | 214 13 . . 690 Explosive . | . . . . . Electromagnetic . | . . . . . Impact 495 | . . . . 495 Slashing . | . . . . . Piercing . | . . . . . Highest Corruption . | . . . . . Average Corruption . | . . . . . Corruption Purged . | . . . . . Corruption Blocked . | . . . . . Overload Shots . | . . . . . Overflow Damage 531 | . . . . 531 Projectiles . | . . . . . Explosions 336 | . . . . 336 Melee 195 | . . . . 195 Knockbacks 3 | . . . . 3 Impact 3 | . . . . 3 Kinetic . | . . . . . Secondary . | . . . . . Self-Inflicted Damage 209 | . . . 33 176 Shots 3 | . . . 1 2 Rammed . | . . . . . Targets Rammed . | . . . . . Kicked . | . . . . . Crushed . | . . . . . Highest Temperature 247 | 36 9 . 1 247 Average Temperature 39 | 13 6 . 1 96 Received Heat Transfer 489 | . . . 165 324 Siege Activations . | . . . . . Martial Activations . | . . . . . Shielding Activations . | . . . . . Robots Disrupted . | . . . . . Combat Hostiles . | . . . . . Robots Corrupted 4 | . . . . 4 Combat Hostiles 4 | . . . . 4 Parts Fried 2 | . . . . 2 Impact Corruptions 8 | . . . . 8 Robots Melted . | . . . . . Combat Hostiles . | . . . . . Parts Melted 1 | 1 . . . . Heat Transferred 1373 | 703 37 . . 633 Parts Sabotaged . | . . . . . Parts Stolen . | . . . . . Parts Stripped . | . . . . . Power Chain Reactions . | . . . . . Alert | -11 -10 -10 -9 -8 ------- Run | Yrd Mat Min Mat Mat Maximum Alert Level . | . . . . . Low Security (%) 100 | 100 100 100 100 100 Level 1 . | . . . . . Level 2 . | . . . . . Level 3 . | . . . . . Level 4 . | . . . . . Level 5 . | . . . . . High Security . | . . . . . Max Security . | . . . . . Peak Influence 135 | 10 15 . 118 135 Initial 39 | . . . . 39 Average 25 | . 1 . 62 38 Influence Increases 579 | 50 15 . 278 236 Destroy 0b10 Robot/C 300 | . . . 180 120 Destroy 0b10 Robot/NC 75 | 50 . . 5 20 Destroy Leader 86 | . . . 62 24 Disable Machine 45 | . . . 15 30 Destroy Structure 43 | . . . 1 42 Lose Combat Pursuer 30 | . 15 . 15 . Influence Decreases 454 | 50 15 . 184 205 Entered New Map 55 | . . . . 55 Time Decay 359 | 50 15 . 184 110 Lost Part 40 | . . . . 40 Squads Dispatched 5 | . 1 . . 4 Investigation 2 | . . . . 2 Extermination . | . . . . . Reinforcement 3 | . 1 . . 2 Assault . | . . . . . Garrison . | . . . . . Intercept . | . . . . . Searches Triggered . | . . . . . Construction Impeded 1 | . . . . 1 Haulers Reinforced . | . . . . . Active Scanning Responses . | . . . . . Cargo Convoy Interrupts . | . . . . . Stealth | -11 -10 -10 -9 -8 --------- Run | Yrd Mat Min Mat Mat Distress Signals 4 | . 1 . 2 1 Communications Jammed . | . . . . . Distress Signals . | . . . . . Times Spotted 25 | . 2 . 14 9 Peak Tracking Total 5 | . 2 . 5 3 Tactical Retreats 2 | . 1 . 1 . Traps | -11 -10 -10 -9 -8 ------- Run | Yrd Mat Min Mat Mat Traps Triggered 3 | . . . 2 1 Indirectly . | . . . . . Trap Hack Attempts . | . . . . . Triggered . | . . . . . Disarmed . | . . . . . Reprogrammed . | . . . . . Reused . | . . . . . Traps Extracted . | . . . . . Installed . | . . . . . Triggered . | . . . . . Machines | -11 -10 -10 -9 -8 ---------- Run | Yrd Mat Min Mat Mat Machines Disabled 4 | . . . 2 2 Max in Single Turn 2 | . . . 1 2 Machines Repaired . | . . . . . Machines Dismantled . | . . . . . Machines Sabotaged . | . . . . . Overloaded Fab Kills . | . . . . . Hacking | -11 -10 -10 -9 -8 --------- Run | Yrd Mat Min Mat Mat Machines Accessed 1 | . . . . 1 Terminals . | . . . . . Fabricators . | . . . . . Repair Stations 1 | . . . . 1 Recycling Units . | . . . . . Scanalyzers . | . . . . . Garrison Access . | . . . . . Total Hacks 1 | . . . . 1 Successful 1 | . . . . 1 Failed . | . . . . . Catastrophic . | . . . . . Database Lockouts . | . . . . . Manual 1 | . . . . 1 Terminals . | . . . . . Fabricators . | . . . . . Repair Stations 1 | . . . . 1 Recycling Units . | . . . . . Scanalyzers . | . . . . . Garrison Access . | . . . . . Terminal Hacks . | . . . . . Fabricator Hacks . | . . . . . Repair Station Hacks . | . . . . . Recycling Unit Hacks . | . . . . . Scanalyzer . | . . . . . Garrison Access Hacks . | . . . . . Unauthorized Hacks 1 | . . . . 1 Terminals . | . . . . . Fabricators . | . . . . . Repair Stations 1 | . . . . 1 Patch 1 | . . . . 1 Recycling Units . | . . . . . Scanalyzers . | . . . . . Garrison Access . | . . . . . Data Cores Recovered . | . . . . . Used . | . . . . . Hacking Detections . | . . . . . Full Trace Events . | . . . . . Feedback Events . | . . . . . Feedback Blocked . | . . . . . Robot Schematics Acquired . | . . . . . Robots Built . | . . . . . Authchips . | . . . . . Time . | . . . . . Total Robot Build Rating . | . . . . . Part Schematics Acquired . | . . . . . Parts Built . | . . . . . Authchips . | . . . . . Time . | . . . . . Total Part Build Rating . | . . . . . Parts Repaired . | . . . . . Time . | . . . . . Parts Recycled . | . . . . . Recycled Matter . | . . . . . Retrieved Matter . | . . . . . Retrieved Components . | . . . . . Parts Scanalyzed . | . . . . . Part Schematics Acquired . | . . . . . Parts Damaged . | . . . . . Bothacking | -11 -10 -10 -9 -8 ------------ Run | Yrd Mat Min Mat Mat Used RIF Installer . | . . . . . Robots Hacked . | . . . . . Non-combat . | . . . . . Combat . | . . . . . Robot Hacks Applied . | . . . . . Relay Couplers Released . | . . . . . Fabnet Peak Effective % . | . . . . . Robots Rewired . | . . . . . Allies Hacked . | . . . . . Hacks Repelled . | . . . . . Allies | -11 -10 -10 -9 -8 -------- Run | Yrd Mat Min Mat Mat Total Allies . | . . . . . Largest Group . | . . . . . Highest-Rated Group . | . . . . . Highest-Rated Ally . | . . . . . Total Orders . | . . . . . Ally Attacks . | . . . . . Total Damage . | . . . . . Kills . | . . . . . Allies Corrupted . | . . . . . Allies Melted . | . . . . . Intel | -11 -10 -10 -9 -8 ------- Run | Yrd Mat Min Mat Mat Active Infowar (turns) 1356 | 182 99 234 540 301 Terrain 578 | . . . 277 301 Seismic 1200 | 182 99 234 540 145 Robot Analysis Total . | . . . . . Derelict Logs Recovered 1 | . . 1 . . Drone Launches . | . . . . . Drone Recoveries . | . . . . . Exploration | -11 -10 -10 -9 -8 ------------- Run | Yrd Mat Min Mat Mat Turns Passed 1786 | 612 99 234 540 301 Spaces Moved 946 | 322 61 147 272 144 Core 4 | 4 . . . . Treads 942 | 318 61 147 272 144 Legs . | . . . . . Wheels . | . . . . . Hover . | . . . . . Flight . | . . . . . Fastest Speed 50 | 50 160 160 160 160 Average Speed 159 | 158 160 160 160 160 Slowest Speed 160 | 160 160 160 160 160 Overloaded Moves . | . . . . . Propulsion Burnouts . | . . . . . Robots Hopped . | . . . . . Potential Cave-ins . | . . . . . Cave-ins Triggered . | . . . . . Exploration Rate (%) 22 | 11 21 36 27 16 Regions Visited 4 Branch Regions 1 Pre-discovered Areas 1 | . . 1 . . Known Exits Taken . | . . . . . Unknown Exits Taken 4 | 1 1 1 1 . Scrap Searched . | . . . . . Spaces Dug . | . . . . . Terrain Destroyed 39 | . . . . 39 Melee . | . . . . . Projectile 4 | . . . . 4 AOE 35 | . . . . 35 Terrain Rammed . | . . . . . Walls Destroyed . | . . . . . Machines Disabled . | . . . . . Actions | -11 -10 -10 -9 -8 --------- Run | Yrd Mat Min Mat Mat Total 1072 | 364 61 146 320 181 Wait 7 | 3 . . 4 . Move 942 | 321 60 146 271 144 Hop . | . . . . . Pick Up 16 | 5 . . 6 5 Fast Attach 12 | 7 . . 5 . Attach 4 | . . . 1 3 Detach . | . . . . . Swap 6 | . . . 3 3 Drop 6 | . . . 3 3 Fire 69 | 28 1 . 27 13 Melee 10 | . . . . 10 Ram . | . . . . . Kick . | . . . . . Crush . | . . . . . Escape Stasis . | . . . . . Rewire . | . . . . . Trap . | . . . . . Miscellaneous . | . . . . . Route ------- -11/Scrapyard -10/Materials -10/Mines -9/Materials (discovered 2 exits: *Mat / [*Min]) -8/Materials History --------- Turn | Location | Event 3 | -11/Scrapyard | Discovered new exit (range 15) 613 | -11/Scrapyard | Entered Materials 614 | -10/Materials | Build established: Mutant 692 | -10/Materials | Discovered new exit (range 14) 712 | -10/Materials | Entered Mines 928 | -10/Mines | Discovered new exit (range 11) 946 | -10/Mines | Entered Materials 946 | -9/Materials | Evolved 2 slots: Propulsion x1, Utility x1 1277 | -9/Materials | Discovered new exit (range 16) 1466 | -9/Materials | Discovered new exit (range 5) 1486 | -9/Materials | Entered another Materials area 1486 | -8/Materials | Evolved 2 slots: Propulsion x1, Utility x1 1682 | -8/Materials | Lost 3 parts (1n2u) 1787 | -8/Materials | Self-destructed Last Messages --------------- 01741_ Terrain Scanner fried. 01741_ U-05 Engineer destroyed. 01741_ Lgt. Treads destroyed. 01741_ Destroyed Lgt. Treads. 01742_ ALERT: Construction progress impeded, dispatching reinforcements to local area. 01742_ K-01 Serf collects debris. 01757_ Lgt. Treads destroyed. 01760_ G-47 Trooper destroyed. 01760_ R-06 Scavenger collects Autogun. 01761_ K-01 Serf collects debris. 01761_ U-05 Engineer lays Concrete. 01764_ K-01 Serf collects debris. 01766_ G-47 Trooper destroyed. 01766_ U-05 Engineer builds a Wall. 01767_ K-01 Serf collects debris. 01770_ U-05 Engineer builds a Wall. 01771_ K-01 Serf collects debris. 01786_ Penetrated by Slug. 01787_ U-05 Engineer builds a Wall. Map ----- +----------------------------------------------------+ | ???????????????????????????????????""" """ # #?? | | ?????????????????????????????????? ?"" """ # #?? | | ???????????????????????????????????? # #?? | | ????????????????????????????????????T""" # ##? | | ??????????????????????????????#??????####### ##? | | ???????????????????????????????????######### #?? | | ???????????????????????????????#???# #?? | | ???????????????????????????#???????# #?? | | ??????????????????????????????? ???# #?? | | ???????????????????????????????????# #######?? | | ??????????????????? ????????????? ?# #???????? | | ????????????????? ?????????????????# #???????? | | ?????????????????????????????????? # ######?#? | | ???????????????????????????????????# ##"""#??? | | ???????????????????????????? ???? # ##"R"#??? | | ?????????????????????????? ????????# ##" "###? | | ???????????????????#############+### ## | | ???????????????????a #? | | ???????????????????? ? """ ## | | ????????????????????? ?? """ # | | ?????????????????????# ???#";!;;;;;; """ # | | ?????????????????? ??# ??# =%= | ;; """ # | | ?????????????????????# ?## = # # | | ?????????????????????# #; # # | | ?????????????????????# #;k*[ # """ # | | ?????????????????? + @;![ k ## """ + | | ???????????????"?????# #; [% a u """ # | | ?????????????????????# #; = """ # | | ?????????????????????# h ""] # | | ?????????????????????# ## ;# % + | | ???????????????????? + ?#";;;;;;;;# % #+#### | | ?????????????????????# ??###### ;### # # | | ?????????????????????# ???????####?# + ]]]## | | ?????????????????? ??# ?# ????????# #### ] #? | | ?????????????????????# ????????????# #??# ## | | ?????????????????????# ??? ???????####+##### #? | | ??????????????????????????????????# # !## | | ???????????????????????????? ???? # """ # #? | | ??????????????????????? ???????"??# ]! """ # #? | | ???????????????????????????? ??"??# ]! "" # !#? | | ??????????????????????? ???????"??# ] ######? | | ???????????????????????????????? ?+ ! =#?????? | | ????????????????????????????????### * #??#??? | | ??????????????????????????????#???# ""T"" [ #??#?? | | ????????????????????????????#????## """"" ##????? | | ??????????????????????????????????##########?????# | | ?????????????????????????????????#?????????????##? | | ??????????????????????????????????????"""???????#? | | ????????????????????????????????????"????????????? | | ???????????????????????????????????? ??????#?????? | +----------------------------------------------------+ Best States ------------- Heat Dissipation 31 Energy Generation 14 Energy Capacity 280 Matter Stores 300 Matter Capacity 300 Sight Range 16 Terrain Scan Range 16 Terrain Scan Density 10 Armor Coverage 150 Evasion (%) 40 Recoil Reduction 4 Item Schematics ----------------- None Robot Schematics ------------------ None Fabricated ------------ Nothing Repaired ---------- Nothing Alien Tech Used ----------------- None Achievements -------------- None Challenges ------------ None Game ------ Seed ActuatorWeightMatter Manual? 0 Play Time 00:08:02 Cumulative 175.1 hours Start 2025.07.20 @ 20:16:11 End 2025.07.20 @ 20:22:22 Sessions 1 Manual Loads 0 Difficulty Rogue Special Mode None Game No. 427 Rogue 427 Adventurer 0 Explorer 0 Win Type - Total 7 Types 5/0/1/1/0/0/0/0/0/0 Lore% 72 Gallery% 64 Achievement% 51 Wizard Run 0 Options --------- Layout 0 ASCII 0 Keyboard 0 Movement Numpad Keybinds 0 Fullscreen 2 Font 18/Terminus Map View 76x50 Zoom Use 0% Tactical HUD 1 Map Filters NONE Filters SATURATION(100) Steam 1 RUN: ec9f5eb6-a1fd-40db-bab9-1e4a70c3b81e